[Event "Titled Tuesday Blitz March 28 Early 2023"]
[White "Jaskolka, Tomasz"]
[Black "Shtompel, Yuriy"]
[WhiteFideId "1170791"]
[BlackFideId "14168278"]
[WhiteElo "2155"]
[BlackElo "1844"]
[Result "0-1"]
[Round "02"]
[TimeControl "180+2"]
[Date "2023.03.28"]
[WhiteClock "0:00:38"]
[BlackClock "0:00:17"]

1. d4 {[%clk 0:03:00]}  Nf6 {[%clk 0:02:46]} 2. Bf4 {[%clk 0:03:00]}  e6 {[%clk 0:02:40]} 3. e3 {[%clk 0:03:00]}  d5 {[%clk 0:02:32]} 4. c3 {[%clk 0:03:00]}  c5 {[%clk 0:02:30]} 5. Nd2 {[%clk 0:03:00]}  Nc6 {[%clk 0:02:31]} 6. Ngf3 {[%clk 0:03:00]}  Bd6 {[%clk 0:02:31]} 7. Bg3 {[%clk 0:02:59]}  O-O {[%clk 0:02:31]} 8. Bd3 {[%clk 0:03:00]}  h6 {[%clk 0:02:29]} 9. Ne5 {[%clk 0:02:59]}  Qc7 {[%clk 0:02:27]} 10. f4 {[%clk 0:02:57]}  Ne7 {[%clk 0:01:49]} 11. Bh4 {[%clk 0:02:41]}  Nd7 {[%clk 0:01:33]} 12. Bxe7 {[%clk 0:02:31]}  Bxe7 {[%clk 0:01:28]} 13. Qf3 {[%clk 0:02:25]}  cxd4 {[%clk 0:01:17]} 14. exd4 {[%clk 0:02:25]}  Nxe5 {[%clk 0:00:50]} 15. fxe5 {[%clk 0:02:25]}  Bg5 {[%clk 0:00:50]} 16. h4 {[%clk 0:02:18]}  Bxd2+ {[%clk 0:00:48]} 17. Kxd2 {[%clk 0:02:18]}  f6 {[%clk 0:00:48]} 18. Raf1 {[%clk 0:02:13]}  Bd7 {[%clk 0:00:48]} 19. Qh5 {[%clk 0:01:48]}  Be8 {[%clk 0:00:43]} 20. Qg4 {[%clk 0:01:40]}  f5 {[%clk 0:00:43]} 21. Qe2 {[%clk 0:01:39]}  a6 {[%clk 0:00:35]} 22. g4 {[%clk 0:01:38]}  f4 {[%clk 0:00:29]} 23. g5 {[%clk 0:01:37]}  Kh8 {[%clk 0:00:26]} 24. Rfg1 {[%clk 0:01:29]}  Qf7 {[%clk 0:00:19]} 25. gxh6 {[%clk 0:01:17]}  gxh6 {[%clk 0:00:20]} 26. Bg6 {[%clk 0:01:17]}  f3 {[%clk 0:00:21]} 27. Bxf7 {[%clk 0:00:55]}  fxe2 {[%clk 0:00:20]} 28. Bxe8 {[%clk 0:00:44]}  Raxe8 {[%clk 0:00:19]} 29. Kxe2 {[%clk 0:00:45]}  Rg8 {[%clk 0:00:19]} 30. Ke3 {[%clk 0:00:43]}  Ref8 {[%clk 0:00:17]} 31. Rxg8+ {[%clk 0:00:37]}  Kxg8 {[%clk 0:00:17]} 32. Rf1 {[%clk 0:00:38]}  Rxf1 {[%clk 0:00:17]} 0-1


[Site "https://www.chess.com"]

[Event "Titled Tuesday Blitz March 28 Early 2023"]
[White "De Souza, Cristiano Gomes"]
[Black "Tanmay Jain"]
[WhiteFideId "2151758"]
[BlackFideId "45015481"]
[WhiteElo "2068"]
[BlackElo "2032"]
[Result "0-1"]
[Round "02"]
[TimeControl "180+2"]
[Date "2023.03.28"]
[WhiteClock "0:00:47"]
[BlackClock "0:00:19"]

1. d4 {[%clk 0:02:59]}  Nf6 {[%clk 0:02:59]} 2. c4 {[%clk 0:02:58]}  e6 {[%clk 0:02:59]} 3. Nf3 {[%clk 0:02:57]}  Be7 {[%clk 0:02:59]} 4. Nc3 {[%clk 0:02:56]}  d5 {[%clk 0:02:58]} 5. Bg5 {[%clk 0:02:55]}  O-O {[%clk 0:02:55]} 6. Rc1 {[%clk 0:02:53]}  Ne4 {[%clk 0:02:53]} 7. Bxe7 {[%clk 0:02:52]}  Qxe7 {[%clk 0:02:54]} 8. cxd5 {[%clk 0:02:52]}  Nxc3 {[%clk 0:02:54]} 9. Rxc3 {[%clk 0:02:50]}  exd5 {[%clk 0:02:54]} 10. Qc1 {[%clk 0:02:51]}  c6 {[%clk 0:02:54]} 11. e3 {[%clk 0:02:50]}  Bf5 {[%clk 0:02:50]} 12. Be2 {[%clk 0:02:46]}  Nd7 {[%clk 0:02:49]} 13. O-O {[%clk 0:02:45]}  Nf6 {[%clk 0:02:44]} 14. a3 {[%clk 0:02:45]}  Ne4 {[%clk 0:02:41]} 15. Rb3 {[%clk 0:02:45]}  Bg4 {[%clk 0:02:40]} 16. Re1 {[%clk 0:02:42]}  Rab8 {[%clk 0:02:09]} 17. Nd2 {[%clk 0:02:40]}  Bxe2 {[%clk 0:01:54]} 18. Nxe4 {[%clk 0:02:37]}  Bc4 {[%clk 0:01:48]} 19. Nd2 {[%clk 0:02:21]}  Bxb3 {[%clk 0:01:46]} 20. Nxb3 {[%clk 0:02:21]}  Rfc8 {[%clk 0:01:45]} 21. Nc5 {[%clk 0:02:20]}  b6 {[%clk 0:01:44]} 22. Nd3 {[%clk 0:02:20]}  c5 {[%clk 0:01:41]} 23. Qd2 {[%clk 0:02:18]}  Qe4 {[%clk 0:01:34]} 24. f3 {[%clk 0:02:16]}  Qe7 {[%clk 0:01:26]} 25. Nf4 {[%clk 0:02:10]}  Rd8 {[%clk 0:01:13]} 26. dxc5 {[%clk 0:02:09]}  Qxc5 {[%clk 0:01:09]} 27. Rc1 {[%clk 0:02:06]}  Qd6 {[%clk 0:01:10]} 28. Rd1 {[%clk 0:02:05]}  d4 {[%clk 0:01:03]} 29. exd4 {[%clk 0:02:00]}  h6 {[%clk 0:00:58]} 30. g3 {[%clk 0:01:59]}  Rbc8 {[%clk 0:00:58]} 31. Kg2 {[%clk 0:01:57]}  Rc4 {[%clk 0:00:58]} 32. d5 {[%clk 0:01:56]}  Rdc8 {[%clk 0:00:58]} 33. Qd3 {[%clk 0:01:43]}  Rc2+ {[%clk 0:00:58]} 34. Kh3 {[%clk 0:01:43]}  Qd7+ {[%clk 0:00:56]} 35. g4 {[%clk 0:01:42]}  Qd6 {[%clk 0:00:56]} 36. Qe3 {[%clk 0:01:37]}  Rxb2 {[%clk 0:00:47]} 37. Rd2 {[%clk 0:01:33]}  Rxd2 {[%clk 0:00:44]} 38. Qxd2 {[%clk 0:01:32]}  Qxa3 {[%clk 0:00:35]} 39. Kg3 {[%clk 0:01:29]}  Qd6 {[%clk 0:00:35]} 40. Kh3 {[%clk 0:01:23]}  b5 {[%clk 0:00:33]} 41. Nh5 {[%clk 0:01:21]}  Rd8 {[%clk 0:00:26]} 42. Qb2 {[%clk 0:01:15]}  f6 {[%clk 0:00:24]} 43. Qxb5 {[%clk 0:01:12]}  Qxd5 {[%clk 0:00:25]} 44. Qe2 {[%clk 0:01:07]}  a5 {[%clk 0:00:21]} 45. Kg3 {[%clk 0:00:58]}  Qd6+ {[%clk 0:00:21]} 46. Kh3 {[%clk 0:00:55]}  Kh8 {[%clk 0:00:21]} 47. Qe4 {[%clk 0:00:53]}  Qd7 {[%clk 0:00:19]} 48. Qg6 {[%clk 0:00:51]}  a4 {[%clk 0:00:19]} 49. Nxf6 {[%clk 0:00:48]}  gxf6 {[%clk 0:00:20]} 50. Qxh6+ {[%clk 0:00:47]}  Qh7 {[%clk 0:00:19]} 0-1


[Site "https://www.chess.com"]

[Event "Titled Tuesday Blitz March 28 Early 2023"]
[White "Sztokbant, Bernardo Vainzoff"]
[Black "Abrosimov, Vladimir"]
[WhiteFideId "2115956"]
[BlackFideId "4166892"]
[WhiteElo "2222"]
[BlackElo "2336"]
[Result "1-0"]
[Round "02"]
[TimeControl "180+2"]
[Date "2023.03.28"]
[WhiteClock "0:00:11"]
[BlackClock "0:00:06"]

1. e4 {[%clk 0:03:00]}  c5 {[%clk 0:02:59]} 2. Nf3 {[%clk 0:03:01]}  d6 {[%clk 0:02:59]} 3. d4 {[%clk 0:03:01]}  cxd4 {[%clk 0:02:59]} 4. Nxd4 {[%clk 0:03:02]}  Nf6 {[%clk 0:02:59]} 5. Nc3 {[%clk 0:03:03]}  a6 {[%clk 0:03:00]} 6. Bc4 {[%clk 0:03:03]}  e6 {[%clk 0:03:00]} 7. Bb3 {[%clk 0:03:03]}  Be7 {[%clk 0:03:00]} 8. O-O {[%clk 0:03:03]}  O-O {[%clk 0:03:01]} 9. f4 {[%clk 0:03:04]}  Bd7 {[%clk 0:03:01]} 10. Qf3 {[%clk 0:02:55]}  Nc6 {[%clk 0:03:01]} 11. Be3 {[%clk 0:02:55]}  Qc7 {[%clk 0:03:00]} 12. Nde2 {[%clk 0:02:49]}  b5 {[%clk 0:02:57]} 13. Rad1 {[%clk 0:02:43]}  b4 {[%clk 0:02:56]} 14. Na4 {[%clk 0:02:43]}  Na5 {[%clk 0:02:49]} 15. Bb6 {[%clk 0:02:38]}  Qb7 {[%clk 0:02:45]} 16. Bxa5 {[%clk 0:02:37]}  Qb5 {[%clk 0:02:37]} 17. Bb6 {[%clk 0:02:26]}  Rab8 {[%clk 0:02:24]} 18. Be3 {[%clk 0:01:59]}  Qa5 {[%clk 0:02:21]} 19. e5 {[%clk 0:01:51]}  Nd5 {[%clk 0:02:13]} 20. Bxd5 {[%clk 0:01:38]}  Qxa4 {[%clk 0:01:58]} 21. Bb3 {[%clk 0:01:34]}  Qb5 {[%clk 0:01:53]} 22. exd6 {[%clk 0:01:35]}  Bf6 {[%clk 0:01:53]} 23. Nd4 {[%clk 0:01:29]}  Qa5 {[%clk 0:01:36]} 24. f5 {[%clk 0:01:14]}  exf5 {[%clk 0:01:29]} 25. Nxf5 {[%clk 0:01:08]}  Rfe8 {[%clk 0:01:14]} 26. Nh6+ {[%clk 0:00:45]}  Kf8 {[%clk 0:00:57]} 27. Nxf7 {[%clk 0:00:30]}  Be6 {[%clk 0:00:42]} 28. d7 {[%clk 0:00:20]}  Bxf7 {[%clk 0:00:28]} 29. dxe8=Q+ {[%clk 0:00:20]}  Rxe8 {[%clk 0:00:28]} 30. Bxf7 {[%clk 0:00:19]}  Kxf7 {[%clk 0:00:29]} 31. Bd4 {[%clk 0:00:15]}  Re6 {[%clk 0:00:26]} 32. Bxf6 {[%clk 0:00:15]}  Rxf6 {[%clk 0:00:26]} 33. Qb7+ {[%clk 0:00:13]}  Kg6 {[%clk 0:00:14]} 34. Qe4+ {[%clk 0:00:11]}  Kf7 {[%clk 0:00:11]} 35. Rd7+ {[%clk 0:00:11]}  Kf8 {[%clk 0:00:08]} 36. Qe7+ {[%clk 0:00:11]}  Kg8 {[%clk 0:00:07]} 37. Qe8+ {[%clk 0:00:10]}  Rf8 {[%clk 0:00:06]} 38. Qxf8# {[%clk 0:00:11]} 1-0


[Site "https://www.chess.com"]

[Event "Titled Tuesday Blitz March 28 Early 2023"]
[White "Bethke, Richard"]
[Black "Ruge, Edison"]
[WhiteFideId "12959243"]
[BlackFideId "4401000"]
[WhiteElo "2369"]
[BlackElo "2175"]
[Result "0-1"]
[Round "02"]
[TimeControl "180+2"]
[Date "2023.03.28"]
[WhiteClock "0:00:51"]
[BlackClock "0:00:27"]

1. e4 {[%clk 0:03:00]}  e5 {[%clk 0:02:57]} 2. Nf3 {[%clk 0:03:00]}  Nc6 {[%clk 0:02:57]} 3. Bc4 {[%clk 0:03:01]}  Be7 {[%clk 0:02:56]} 4. O-O {[%clk 0:03:00]}  Nf6 {[%clk 0:02:57]} 5. d4 {[%clk 0:03:00]}  d6 {[%clk 0:02:57]} 6. Nc3 {[%clk 0:02:56]}  Bg4 {[%clk 0:02:56]} 7. d5 {[%clk 0:02:53]}  Nd4 {[%clk 0:02:51]} 8. Be2 {[%clk 0:02:53]}  Nxe2+ {[%clk 0:02:50]} 9. Qxe2 {[%clk 0:02:52]}  O-O {[%clk 0:02:48]} 10. Qd3 {[%clk 0:02:49]}  h6 {[%clk 0:02:45]} 11. Nd2 {[%clk 0:02:48]}  a6 {[%clk 0:02:41]} 12. a4 {[%clk 0:02:45]}  Nh5 {[%clk 0:02:36]} 13. Nc4 {[%clk 0:02:41]}  Bd7 {[%clk 0:02:23]} 14. Na5 {[%clk 0:02:35]}  Rb8 {[%clk 0:02:18]} 15. Be3 {[%clk 0:02:26]}  Qc8 {[%clk 0:01:57]} 16. b4 {[%clk 0:02:15]}  f5 {[%clk 0:01:54]} 17. f3 {[%clk 0:02:11]}  f4 {[%clk 0:01:51]} 18. Bf2 {[%clk 0:02:10]}  g5 {[%clk 0:01:51]} 19. b5 {[%clk 0:02:06]}  axb5 {[%clk 0:01:43]} 20. Nxb5 {[%clk 0:01:58]}  Ra8 {[%clk 0:01:38]} 21. Nb3 {[%clk 0:01:54]}  g4 {[%clk 0:01:33]} 22. fxg4 {[%clk 0:01:52]}  Bxg4 {[%clk 0:01:31]} 23. c4 {[%clk 0:01:52]}  f3 {[%clk 0:01:30]} 24. g3 {[%clk 0:01:52]}  Bh3 {[%clk 0:01:10]} 25. Rfc1 {[%clk 0:01:50]}  Bg5 {[%clk 0:01:01]} 26. Rc2 {[%clk 0:01:35]}  Bg2 {[%clk 0:00:52]} 27. Be3 {[%clk 0:01:11]}  Qh3 {[%clk 0:00:40]} 28. Bxg5 {[%clk 0:01:10]}  Nxg3 {[%clk 0:00:28]} 29. Rxg2 {[%clk 0:00:51]}  Qxg2# {[%clk 0:00:27]} 0-1


[Site "https://www.chess.com"]

[Event "Titled Tuesday Blitz March 28 Early 2023"]
[White "Schut, Han"]
[Black "Urbina Perez, Juan Antonio"]
[WhiteFideId "1005561"]
[BlackFideId "2217368"]
[WhiteElo "2024"]
[BlackElo "2197"]
[Result "1-0"]
[Round "02"]
[TimeControl "180+2"]
[Date "2023.03.28"]
[WhiteClock "0:00:15"]
[BlackClock "0:00:48"]

1. e4 {[%clk 0:03:00]}  c5 {[%clk 0:02:56]} 2. Nf3 {[%clk 0:03:00]}  d6 {[%clk 0:02:56]} 3. d4 {[%clk 0:02:58]}  cxd4 {[%clk 0:02:57]} 4. Nxd4 {[%clk 0:02:58]}  Nf6 {[%clk 0:02:56]} 5. f3 {[%clk 0:02:58]}  e5 {[%clk 0:02:55]} 6. Bb5+ {[%clk 0:02:52]}  Bd7 {[%clk 0:02:49]} 7. Bxd7+ {[%clk 0:02:51]}  Qxd7 {[%clk 0:02:48]} 8. Nf5 {[%clk 0:02:52]}  h6 {[%clk 0:02:28]} 9. c4 {[%clk 0:02:46]}  Nc6 {[%clk 0:02:26]} 10. Nc3 {[%clk 0:02:43]}  g6 {[%clk 0:02:25]} 11. Ne3 {[%clk 0:02:41]}  Bg7 {[%clk 0:02:26]} 12. Ned5 {[%clk 0:02:38]}  Nxd5 {[%clk 0:02:24]} 13. Nxd5 {[%clk 0:02:39]}  Ne7 {[%clk 0:02:18]} 14. Nc3 {[%clk 0:02:30]}  O-O {[%clk 0:02:16]} 15. Be3 {[%clk 0:02:26]}  a6 {[%clk 0:02:15]} 16. Qd2 {[%clk 0:02:26]}  b5 {[%clk 0:02:15]} 17. cxb5 {[%clk 0:02:21]}  axb5 {[%clk 0:02:16]} 18. Bxh6 {[%clk 0:02:19]}  b4 {[%clk 0:02:16]} 19. Nd5 {[%clk 0:02:10]}  Nxd5 {[%clk 0:02:11]} 20. Bxg7 {[%clk 0:02:08]}  Kxg7 {[%clk 0:02:06]} 21. Qxd5 {[%clk 0:02:07]}  Qa7 {[%clk 0:02:01]} 22. Qd2 {[%clk 0:01:34]}  b3 {[%clk 0:01:58]} 23. a3 {[%clk 0:01:33]}  Rac8 {[%clk 0:01:54]} 24. Rc1 {[%clk 0:01:26]}  Rxc1+ {[%clk 0:01:47]} 25. Qxc1 {[%clk 0:01:25]}  Qa5+ {[%clk 0:01:37]} 26. Qd2 {[%clk 0:01:22]}  Qb6 {[%clk 0:01:36]} 27. Ke2 {[%clk 0:01:10]}  f5 {[%clk 0:01:24]} 28. exf5 {[%clk 0:01:06]}  Rxf5 {[%clk 0:01:21]} 29. Rd1 {[%clk 0:01:02]}  e4 {[%clk 0:01:14]} 30. Qd4+ {[%clk 0:00:53]}  Qxd4 {[%clk 0:01:11]} 31. Rxd4 {[%clk 0:00:54]}  exf3+ {[%clk 0:01:11]} 32. gxf3 {[%clk 0:00:54]}  Rc5 {[%clk 0:01:11]} 33. Rxd6 {[%clk 0:00:50]}  Kf7 {[%clk 0:01:08]} 34. Rd2 {[%clk 0:00:43]}  Ke6 {[%clk 0:01:07]} 35. Kd1 {[%clk 0:00:36]}  Ke5 {[%clk 0:01:04]} 36. Rd3 {[%clk 0:00:36]}  Rc2 {[%clk 0:01:02]} 37. Rxb3 {[%clk 0:00:36]}  Rxh2 {[%clk 0:01:02]} 38. a4 {[%clk 0:00:36]}  Rh4 {[%clk 0:00:58]} 39. Ra3 {[%clk 0:00:34]}  Rb4 {[%clk 0:00:55]} 40. Kc2 {[%clk 0:00:29]}  Kd4 {[%clk 0:00:55]} 41. a5 {[%clk 0:00:27]}  Rb7 {[%clk 0:00:55]} 42. a6 {[%clk 0:00:27]}  Ra7 {[%clk 0:00:55]} 43. Kd2 {[%clk 0:00:23]}  Kc4 {[%clk 0:00:55]} 44. Ke3 {[%clk 0:00:22]}  g5 {[%clk 0:00:54]} 45. Kf2 {[%clk 0:00:22]}  Kd4 {[%clk 0:00:51]} 46. Kg3 {[%clk 0:00:22]}  Ke5 {[%clk 0:00:51]} 47. Kg4 {[%clk 0:00:22]}  Kf6 {[%clk 0:00:51]} 48. Ra5 {[%clk 0:00:20]}  Ke6 {[%clk 0:00:48]} 49. b4 {[%clk 0:00:19]}  Kd6 {[%clk 0:00:48]} 50. Kxg5 {[%clk 0:00:15]}  Kc6 {[%clk 0:00:48]} 51. f4 {[%clk 0:00:14]}  Kb6 {[%clk 0:00:49]} 52. Ra3 {[%clk 0:00:14]}  Rg7+ {[%clk 0:00:46]} 53. Kf6 {[%clk 0:00:14]}  Ra7 {[%clk 0:00:46]} 54. f5 {[%clk 0:00:14]}  Kb5 {[%clk 0:00:47]} 55. Ke6 {[%clk 0:00:14]}  Kxb4 {[%clk 0:00:48]} 56. Ra1 {[%clk 0:00:13]}  Ra8 {[%clk 0:00:47]} 57. a7 {[%clk 0:00:13]}  Kb3 {[%clk 0:00:48]} 58. f6 {[%clk 0:00:13]}  Kb2 {[%clk 0:00:49]} 59. Ra6 {[%clk 0:00:13]}  Kc3 {[%clk 0:00:48]} 60. f7 {[%clk 0:00:13]}  Kb4 {[%clk 0:00:49]} 61. Ke7 {[%clk 0:00:14]}  Kb5 {[%clk 0:00:49]} 62. Ra1 {[%clk 0:00:14]}  Kc6 {[%clk 0:00:48]} 63. f8=Q {[%clk 0:00:14]}  Rxf8 {[%clk 0:00:48]} 64. Kxf8 {[%clk 0:00:15]} 1-0


[Site "https://www.chess.com"]

[Event "Titled Tuesday Blitz March 28 Early 2023"]
[White "Koc, Przemyslaw"]
[Black "Marchesich, Giovanni"]
[WhiteFideId "1109081"]
[BlackFideId "2824790"]
[WhiteElo "2161"]
[BlackElo "2209"]
[Result "1-0"]
[Round "02"]
[TimeControl "180+2"]
[Date "2023.03.28"]
[WhiteClock "0:00:24"]
[BlackClock "0:00:09"]

1. Nf3 {[%clk 0:03:00]}  c5 {[%clk 0:02:58]} 2. e3 {[%clk 0:03:01]}  Nc6 {[%clk 0:02:57]} 3. d4 {[%clk 0:03:02]}  d5 {[%clk 0:02:56]} 4. b3 {[%clk 0:03:00]}  Bg4 {[%clk 0:02:52]} 5. Bb2 {[%clk 0:03:00]}  Rc8 {[%clk 0:02:39]} 6. Nbd2 {[%clk 0:02:59]}  Nf6 {[%clk 0:02:33]} 7. h3 {[%clk 0:02:59]}  Bf5 {[%clk 0:02:32]} 8. a3 {[%clk 0:02:56]}  h6 {[%clk 0:02:29]} 9. dxc5 {[%clk 0:02:53]}  e6 {[%clk 0:02:29]} 10. b4 {[%clk 0:02:53]}  a5 {[%clk 0:02:25]} 11. c3 {[%clk 0:02:41]}  e5 {[%clk 0:02:20]} 12. Be2 {[%clk 0:02:41]}  e4 {[%clk 0:02:17]} 13. Nd4 {[%clk 0:02:40]}  Bg6 {[%clk 0:02:18]} 14. O-O {[%clk 0:02:37]}  Ne5 {[%clk 0:02:18]} 15. c4 {[%clk 0:02:32]}  Nd3 {[%clk 0:02:15]} 16. Bxd3 {[%clk 0:02:31]}  exd3 {[%clk 0:02:16]} 17. cxd5 {[%clk 0:02:29]}  Qxd5 {[%clk 0:02:16]} 18. Qa4+ {[%clk 0:02:22]}  Nd7 {[%clk 0:02:11]} 19. e4 {[%clk 0:02:13]}  Qg5 {[%clk 0:02:07]} 20. f4 {[%clk 0:02:04]}  Qg3 {[%clk 0:02:08]} 21. Rf3 {[%clk 0:02:03]}  Qh4 {[%clk 0:02:08]} 22. Raf1 {[%clk 0:01:47]}  Bh5 {[%clk 0:02:06]} 23. g4 {[%clk 0:01:43]}  Bxg4 {[%clk 0:02:03]} 24. hxg4 {[%clk 0:01:43]}  Qxg4+ {[%clk 0:02:03]} 25. Kh2 {[%clk 0:01:41]}  Bxc5 {[%clk 0:01:55]} 26. bxc5 {[%clk 0:01:39]}  Rxc5 {[%clk 0:01:56]} 27. Nf5 {[%clk 0:01:31]}  g6 {[%clk 0:01:48]} 28. Rxd3 {[%clk 0:01:25]}  Qe2+ {[%clk 0:01:38]} 29. Kg1 {[%clk 0:01:22]}  Qxd3 {[%clk 0:01:38]} 30. Bxh8 {[%clk 0:01:17]}  gxf5 {[%clk 0:01:33]} 31. Nf3 {[%clk 0:01:07]}  fxe4 {[%clk 0:01:23]} 32. Qd4 {[%clk 0:01:05]}  Rd5 {[%clk 0:01:07]} 33. Qxd3 {[%clk 0:01:00]}  Rxd3 {[%clk 0:01:07]} 34. Nd4 {[%clk 0:00:53]}  f6 {[%clk 0:00:56]} 35. Nf5 {[%clk 0:00:49]}  Kf7 {[%clk 0:00:51]} 36. Kg2 {[%clk 0:00:46]}  Rxa3 {[%clk 0:00:47]} 37. Rd1 {[%clk 0:00:46]}  Nf8 {[%clk 0:00:43]} 38. Rd6 {[%clk 0:00:45]}  Ng6 {[%clk 0:00:30]} 39. Nxh6+ {[%clk 0:00:40]}  Ke7 {[%clk 0:00:28]} 40. Rxf6 {[%clk 0:00:40]}  Rf3 {[%clk 0:00:23]} 41. Rxg6 {[%clk 0:00:39]}  a4 {[%clk 0:00:23]} 42. f5 {[%clk 0:00:37]}  a3 {[%clk 0:00:23]} 43. Be5 {[%clk 0:00:36]}  b5 {[%clk 0:00:12]} 44. Rg7+ {[%clk 0:00:33]}  Ke8 {[%clk 0:00:12]} 45. f6 {[%clk 0:00:33]}  b4 {[%clk 0:00:12]} 46. Rb7 {[%clk 0:00:32]}  b3 {[%clk 0:00:11]} 47. f7+ {[%clk 0:00:32]}  Kd8 {[%clk 0:00:09]} 48. Rxb3 {[%clk 0:00:27]}  a2 {[%clk 0:00:08]} 49. Rxf3 {[%clk 0:00:26]}  exf3+ {[%clk 0:00:09]} 50. Kxf3 {[%clk 0:00:26]}  Ke7 {[%clk 0:00:10]} 51. Bg7 {[%clk 0:00:25]}  a1=Q {[%clk 0:00:09]} 52. f8=Q+ {[%clk 0:00:24]} 1-0


[Site "https://www.chess.com"]

[Event "Titled Tuesday Blitz March 28 Early 2023"]
[White "monkins"]
[Black "Kubatko, Ivan"]
[BlackFideId "24111473"]
[WhiteElo "2257"]
[BlackElo "2285"]
[Result "1-0"]
[Round "02"]
[TimeControl "180+2"]
[Date "2023.03.28"]
[WhiteClock "0:00:30"]
[BlackClock "0:00:01"]

1. Nf3 {[%clk 0:03:00]}  d5 {[%clk 0:02:56]} 2. c4 {[%clk 0:03:01]}  e6 {[%clk 0:02:56]} 3. g3 {[%clk 0:03:00]}  Nf6 {[%clk 0:02:55]} 4. Bg2 {[%clk 0:03:01]}  c5 {[%clk 0:02:56]} 5. cxd5 {[%clk 0:03:00]}  exd5 {[%clk 0:02:56]} 6. d4 {[%clk 0:03:00]}  Nc6 {[%clk 0:02:57]} 7. O-O {[%clk 0:03:00]}  Be7 {[%clk 0:02:56]} 8. dxc5 {[%clk 0:03:00]}  Bxc5 {[%clk 0:02:57]} 9. a3 {[%clk 0:03:01]}  O-O {[%clk 0:02:54]} 10. b4 {[%clk 0:03:00]}  Bb6 {[%clk 0:02:54]} 11. Bb2 {[%clk 0:02:59]}  Re8 {[%clk 0:02:46]} 12. Nc3 {[%clk 0:02:59]}  Bg4 {[%clk 0:02:38]} 13. Na4 {[%clk 0:02:57]}  Bc7 {[%clk 0:02:16]} 14. Rc1 {[%clk 0:02:56]}  Ne4 {[%clk 0:02:04]} 15. Nc5 {[%clk 0:02:51]}  Nxc5 {[%clk 0:01:52]} 16. Rxc5 {[%clk 0:02:51]}  Qe7 {[%clk 0:01:15]} 17. Re1 {[%clk 0:02:27]}  Be6 {[%clk 0:00:40]} 18. Nd4 {[%clk 0:02:25]}  Bb6 {[%clk 0:00:12]} 19. Nxc6 {[%clk 0:02:19]}  bxc6 {[%clk 0:00:13]} 20. Rxc6 {[%clk 0:02:16]}  Rad8 {[%clk 0:00:14]} 21. Bd4 {[%clk 0:02:11]}  Qd7 {[%clk 0:00:10]} 22. b5 {[%clk 0:02:04]}  Bh3 {[%clk 0:00:06]} 23. Bxb6 {[%clk 0:01:54]}  axb6 {[%clk 0:00:07]} 24. Rxb6 {[%clk 0:01:54]}  Bxg2 {[%clk 0:00:07]} 25. Kxg2 {[%clk 0:01:55]}  d4 {[%clk 0:00:08]} 26. Qd3 {[%clk 0:01:48]}  Qd5+ {[%clk 0:00:06]} 27. Qf3 {[%clk 0:01:45]}  Qc5 {[%clk 0:00:06]} 28. Rb7 {[%clk 0:01:43]}  Rf8 {[%clk 0:00:05]} 29. Rd1 {[%clk 0:01:35]}  h5 {[%clk 0:00:05]} 30. h4 {[%clk 0:01:35]}  Rd5 {[%clk 0:00:05]} 31. Rd3 {[%clk 0:01:21]}  Rf5 {[%clk 0:00:05]} 32. Qc6 {[%clk 0:01:22]}  Qe5 {[%clk 0:00:03]} 33. e3 {[%clk 0:01:05]}  dxe3 {[%clk 0:00:03]} 34. Rxe3 {[%clk 0:01:05]}  Qb2 {[%clk 0:00:03]} 35. Rf3 {[%clk 0:01:01]}  Rxf3 {[%clk 0:00:03]} 36. Qxf3 {[%clk 0:01:01]}  f6 {[%clk 0:00:03]} 37. Qd5+ {[%clk 0:00:57]}  Kh7 {[%clk 0:00:02]} 38. Qxh5+ {[%clk 0:00:57]}  Kg8 {[%clk 0:00:03]} 39. Qd5+ {[%clk 0:00:55]}  Kh7 {[%clk 0:00:02]} 40. a4 {[%clk 0:00:51]}  Qc3 {[%clk 0:00:01]} 41. Qh5+ {[%clk 0:00:31]}  Kg8 {[%clk 0:00:01]} 42. Qg6 {[%clk 0:00:30]} 1-0


[Site "https://www.chess.com"]

[Event "Titled Tuesday Blitz March 28 Early 2023"]
[White "Khamdamova, Afruza"]
[Black "Vadim_Galchenko"]
[WhiteFideId "14210444"]
[WhiteElo "2210"]
[BlackElo "2256"]
[Result "0-1"]
[Round "02"]
[TimeControl "180+2"]
[Date "2023.03.28"]
[WhiteClock "0:00:02"]
[BlackClock "0:01:13"]

1. e4 {[%clk 0:03:00]}  e6 {[%clk 0:03:00]} 2. d4 {[%clk 0:03:00]}  d5 {[%clk 0:03:00]} 3. Nd2 {[%clk 0:03:00]}  c5 {[%clk 0:03:00]} 4. Ngf3 {[%clk 0:02:59]}  cxd4 {[%clk 0:02:56]} 5. exd5 {[%clk 0:02:59]}  Qxd5 {[%clk 0:02:57]} 6. Bc4 {[%clk 0:02:59]}  Qd6 {[%clk 0:02:57]} 7. O-O {[%clk 0:02:59]}  Nf6 {[%clk 0:02:57]} 8. Nb3 {[%clk 0:02:58]}  Nc6 {[%clk 0:02:56]} 9. Nbxd4 {[%clk 0:02:57]}  Nxd4 {[%clk 0:02:57]} 10. Nxd4 {[%clk 0:02:56]}  a6 {[%clk 0:02:57]} 11. Bb3 {[%clk 0:02:56]}  Qc7 {[%clk 0:02:52]} 12. Re1 {[%clk 0:02:56]}  Bd7 {[%clk 0:02:48]} 13. c3 {[%clk 0:02:46]}  Bd6 {[%clk 0:02:42]} 14. Nf5 {[%clk 0:02:27]}  Bxh2+ {[%clk 0:02:42]} 15. Kh1 {[%clk 0:02:27]}  O-O-O {[%clk 0:02:42]} 16. Nxg7 {[%clk 0:01:16]}  Rhg8 {[%clk 0:02:39]} 17. Bg5 {[%clk 0:01:09]}  Bc6 {[%clk 0:02:15]} 18. Bxf6 {[%clk 0:00:49]}  Rxd1 {[%clk 0:02:13]} 19. Raxd1 {[%clk 0:00:49]}  Kb8 {[%clk 0:02:05]} 20. f3 {[%clk 0:00:46]}  Qg3 {[%clk 0:01:42]} 21. Re3 {[%clk 0:00:35]}  Rxg7 {[%clk 0:01:31]} 22. Bxg7 {[%clk 0:00:33]}  Qxg7 {[%clk 0:01:32]} 23. g4 {[%clk 0:00:15]}  Qxg4 {[%clk 0:01:23]} 24. Bd5 {[%clk 0:00:08]}  Bxd5 {[%clk 0:01:16]} 25. c4 {[%clk 0:00:02]}  Bxf3+ {[%clk 0:01:13]} 0-1


[Site "https://www.chess.com"]

[Event "Titled Tuesday Blitz March 28 Early 2023"]
[White "Qashashvili, Alexandre"]
[Black "Pein, Jonathan"]
[WhiteFideId "13600842"]
[BlackFideId "417092"]
[WhiteElo "2405"]
[BlackElo "2151"]
[Result "0-1"]
[Round "02"]
[TimeControl "180+2"]
[Date "2023.03.28"]
[WhiteClock "0:01:16"]
[BlackClock "0:00:52"]

1. e4 {[%clk 0:03:00]}  e5 {[%clk 0:02:54]} 2. Nc3 {[%clk 0:03:00]}  d6 {[%clk 0:02:55]} 3. Nf3 {[%clk 0:03:01]}  Nf6 {[%clk 0:02:55]} 4. d4 {[%clk 0:02:59]}  exd4 {[%clk 0:02:56]} 5. Nxd4 {[%clk 0:02:59]}  g6 {[%clk 0:02:57]} 6. Bc4 {[%clk 0:02:59]}  Bg7 {[%clk 0:02:58]} 7. O-O {[%clk 0:02:58]}  O-O {[%clk 0:02:58]} 8. h3 {[%clk 0:02:58]}  a6 {[%clk 0:02:59]} 9. a3 {[%clk 0:02:58]}  Re8 {[%clk 0:02:57]} 10. Re1 {[%clk 0:02:57]}  b5 {[%clk 0:02:58]} 11. Ba2 {[%clk 0:02:56]}  Bb7 {[%clk 0:02:58]} 12. Bg5 {[%clk 0:02:53]}  h6 {[%clk 0:02:58]} 13. Bxf6 {[%clk 0:02:53]}  Qxf6 {[%clk 0:02:59]} 14. Bd5 {[%clk 0:02:46]}  c6 {[%clk 0:02:48]} 15. Bxf7+ {[%clk 0:02:22]}  Kxf7 {[%clk 0:02:41]} 16. Nf3 {[%clk 0:02:23]}  Nd7 {[%clk 0:02:37]} 17. Qd2 {[%clk 0:02:21]}  Kg8 {[%clk 0:02:37]} 18. Rad1 {[%clk 0:02:20]}  Ne5 {[%clk 0:02:27]} 19. Qxd6 {[%clk 0:02:15]}  Nxf3+ {[%clk 0:02:26]} 20. gxf3 {[%clk 0:02:15]}  Qxf3 {[%clk 0:02:10]} 21. Qxg6 {[%clk 0:02:12]}  Re5 {[%clk 0:02:00]} 22. h4 {[%clk 0:02:04]}  Rf8 {[%clk 0:01:50]} 23. Re2 {[%clk 0:01:57]}  Bc8 {[%clk 0:01:45]} 24. Qxc6 {[%clk 0:01:33]}  Bh3 {[%clk 0:01:05]} 25. Qg6 {[%clk 0:01:24]}  Rg5+ {[%clk 0:00:54]} 26. Qxg5 {[%clk 0:01:15]}  hxg5 {[%clk 0:00:53]} 27. Rd3 {[%clk 0:01:16]}  Qg2# {[%clk 0:00:52]} 0-1


[Site "https://www.chess.com"]